Cogmind - Beta 16.1 @@@ ROGUE MODE // 2026.02.22 @ 17:20:50 Player: JAM Result: Destroyed by F8-3R7(R) with Subdweller Beam Cannon Performance ------------- Evolutions (0) 0 Regions Visited (3) 600 Robots Destroyed (18) 90 Value Destroyed (608) 608 Prototype IDs (0) 0 Alien Tech Used (0) 0 Bonus (0) 0 TOTAL SCORE: 1298 Bonus ------- None Cogmind --------- Core Integrity 0/250 Matter 276/300 Energy 118/250 System Corruption 0% Temperature Cool (9) Movement Core (300) Ox5 Location -10/Subcaves Parts ------- > --- POWER (1) -------- Ion Engine > --- PROPULSION (2) --- (None) > --- UTILITY (2) ------ Small Storage Unit Improved Trap Extractor (0/6) > --- WEAPON (2) ------- Barrage Gun > --- INVENTORY (8) ---- Aluminum Leg Subdweller Optics Scrap Shield Small Laser Flamer Peak State ------------ > --- POWER ------------ Light Angular Momentum Engine > --- PROPULSION ------- Aluminum Leg Myomer Leg > --- UTILITY ---------- Small Storage Unit Improved Trap Extractor > --- WEAPON ----------- Light Assault Rifle Light Assault Rifle > --- INVENTORY -------- Ion Engine Aluminum Leg Subdweller Optics Scrap Shield Small Laser Barrage Gun [Rating: 21] Favorites ----------- Power Light Angular Momentum Engine Engine Light Angular Momentum Engine Propulsion Light Treads Treads Light Treads Leg Aluminum Leg Utility Small Storage Unit Device Improved Trap Extractor Storage Small Storage Unit Weapon Light Assault Rifle Energy Gun Small Laser Ballistic Gun Light Assault Rifle Launcher Rocket Launcher Build | -11 -10 -10 -10 ------- Run | Yrd Mat Min Sub Slots Evolved . | . . . . Power . | . . . . Propulsion . | . . . . Utility . | . . . . Weapon . | . . . . Parts Attached 16 | 6 2 3 5 Power 3 | 1 1 . 1 Engine 3 | 1 1 . 1 Core . | . . . . Reactor . | . . . . Propulsion 5 | 2 . 2 1 Treads 2 | 2 . . . Leg 3 | . . 2 1 Wheel . | . . . . Hover . | . . . . Flight . | . . . . Utility 3 | 1 1 . 1 Device 1 | . . . 1 Storage 2 | 1 1 . . Processor . | . . . . Hackware . | . . . . Protection . | . . . . Artifact . | . . . . Weapon 5 | 2 . 1 2 Energy Gun 1 | 1 . . . Energy Cannon . | . . . . Ballistic Gun 3 | 1 . . 2 Ballistic Cannon . | . . . . Launcher 1 | . . 1 . Special Weapon . | . . . . Impact Weapon . | . . . . Slashing Weapon . | . . . . Piercing Weapon . | . . . . Special Melee Weapon . | . . . . Unidentified Prototypes . | . . . . Parts Lost 9 | . . . 9 Power 2 | . . . 2 Propulsion 4 | . . . 4 Utility . | . . . . Weapon 3 | . . . 3 Highest Loss Streak 5 | . . . 5 To Critical Strikes . | . . . . Average Backups 5 | 2 4 5 6 Power . | . 1 1 . Propulsion 1 | 1 2 1 1 Utility 1 | . . . 1 Weapon 1 | . 1 1 1 Tool/Special . | . . . . Unused Backups 3 | . . . 3 Power . | . . . . Propulsion . | . . . . Utility 2 | . . . 2 Weapon 1 | . . . 1 Tool/Special . | . . . . Average Slot Usage (%) 96 | . 85 100 96 Engine 14 | . 14 14 14 Treads 13 | . 28 27 5 Leg 14 | . . . 21 Device 7 | . . . 11 Storage 17 | . 14 28 14 Energy Gun 1 | . 14 2 . Ballistic Gun 21 | . 14 14 25 Launcher 4 | . . 11 2 Peak Build Rating 21 | 6 7 8 21 Average Rating 14 | 4 6 7 18 On Entrance 5 | . 6 7 8 Avg Prop Armor Cover (%) . | . . . . Naked Turns . | . . . . Heaviest Build 19 | 10 12 15 19 Greatest Support 40 | 40 40 40 40 Greatest Overweight (x) 4 | . . . 4 Average Overweight (x) . | . . . . Largest Inventory Capacity 8 | 8 8 8 8 Average Capacity 7 | 6 8 8 8 Most Carried 8 | 4 5 6 8 Average Carried 6 | 2 4 5 7 Final Capacity 8 | 8 8 8 8 Final Carried 6 | 4 4 6 6 Class Distribution -------------------- 100% | Mutant Dominant Class ---------------- Mutant | -10/Materials Mutant | -10/Mines Mutant | -10/Subcaves Resources | -11 -10 -10 -10 ----------- Run | Yrd Mat Min Sub Matter Collected 511 | 154 . 113 244 Remotely . | . . . . Salvage Created 558 | . . 227 331 Parts 38 | . . 14 24 Haulers Intercepted . | . . . . Recyclers Shooed . | . . . . Parts Field Recycled . | . . . . Retrieved Matter . | . . . . Parts Self-Destructed . | . . . . Prevented . | . . . . Parts Restored . | . . . . Kills | -11 -10 -10 -10 ------- Run | Yrd Mat Min Sub Combat Hostiles Destroyed 17 | . . 9 8 Guns 11 | . . 3 8 AOE 6 | . . 6 . Classes Destroyed 4 | . . 3 1 Builder 1 | . . 1 . Swarmer 3 | . . 3 . Grunt 6 | . . 6 . Subdweller 8 | . . . 8 Best Kill Streak 3 | . . 3 3 Combat Bots Only 3 | . . 3 3 Max Kills in Single Turn 2 | . . 2 1 Gunslinging . | . . . . Exploded 2 | . . 2 . Melee . | . . . . Uniques/NPCs Destroyed . | . . . . Combat | -11 -10 -10 -10 -------- Run | Yrd Mat Min Sub Hostile Shots Fired 77 | . . 27 50 Missed 25 | . . 8 17 Hits 52 | . . 19 33 Projectile 52 | . . 19 33 Critical Strikes 1 | . . . 1 Damage Taken 1207 | . . 271 936 Core 259 | . . 58 201 Absorbed by Shields . | . . . . Core Remaining (%) 100 | 100 . . . Volleys Fired 49 | . 2 13 34 Largest 2 | . 2 2 2 Hottest 60 | . 60 60 48 Shots Fired 87 | . 4 20 63 Gun 81 | . 4 14 63 Cannon . | . . . . Launcher 6 | . . 6 . Special . | . . . . Kinetic 72 | . 2 7 63 Thermal 9 | . 2 7 . Explosive 6 | . . 6 . Electromagnetic . | . . . . Robot Hit Streak 18 | . 1 11 18 Robot Miss Streak 2 | . 2 1 2 Penetration Max . | . . . . Secondary Targets 3 | . . 2 1 Max Gunslinging Chain 1 | . . 1 1 Shots Hit Robots 69 | . 1 16 52 Core Hits 29 | . . 12 17 Critical Kills . | . . . . Critical Parts Destroyed . | . . . . Critical Strikes 2 | . . . 2 Destroy 2 | . . . 2 Melee Attacks . | . . . . Impact . | . . . . Slashing . | . . . . Piercing . | . . . . Sneak Attacks . | . . . . Combat Hostiles . | . . . . Follow-up Attacks . | . . . . Damage Inflicted 996 | . 9 551 436 Guns 558 | . 9 118 431 Cannons . | . . . . Explosions 432 | . . 432 . Melee . | . . . . Ramming 6 | . . 1 5 Kinetic 480 | . 9 40 431 Thermal 78 | . . 78 . Explosive 432 | . . 432 . Electromagnetic . | . . . . Impact . | . . . . Slashing . | . . . . Piercing . | . . . . Highest Corruption . | . . . . Average Corruption . | . . . . Corruption Purged . | . . . . Corruption Blocked . | . . . . Overload Shots . | . . . . Overflow Damage . | . . . . Projectiles . | . . . . Explosions . | . . . . Melee . | . . . . Knockbacks . | . . . . Impact . | . . . . Kinetic . | . . . . Secondary . | . . . . Self-Inflicted Damage 38 | . . 38 . Shots 1 | . . 1 . Rammed . | . . . . Targets Rammed 2 | . . 1 1 Kicked 1 | . . . 1 Crushed 1 | . . 1 . Highest Temperature 262 | . 40 40 262 Average Temperature 61 | . 20 17 144 Received Heat Transfer 536 | . . 30 506 Siege Activations . | . . . . Martial Activations . | . . . . Shielding Activations . | . . . . Robots Disrupted . | . . . . Combat Hostiles . | . . . . Robots Corrupted . | . . . . Combat Hostiles . | . . . . Parts Fried . | . . . . Impact Corruptions . | . . . . Robots Melted . | . . . . Combat Hostiles . | . . . . Parts Melted 1 | . . 1 . Heat Transferred 175 | . . 175 . Parts Sabotaged . | . . . . Parts Stolen . | . . . . Parts Stripped . | . . . . Power Chain Reactions . | . . . . Alert | -11 -10 -10 -10 ------- Run | Yrd Mat Min Sub Maximum Alert Level . | . . . . Low Security (%) 100 | 100 100 100 . Level 1 . | . . . . Level 2 . | . . . . Level 3 . | . . . . Level 4 . | . . . . Level 5 . | . . . . High Security . | . . . . Max Security . | . . . . Peak Influence 124 | . 30 124 . Initial . | . . . . Average 38 | . 6 52 . Influence Increases 312 | . 30 282 . Destroy 0b10 Robot/C 180 | . . 180 . Destroy 0b10 Robot/NC 5 | . . 5 . Destroy Leader 40 | . . 40 . Disable Machine 15 | . . 15 . Destroy Structure 42 | . . 42 . Lose Combat Pursuer 30 | . 30 . . Influence Decreases 312 | . 30 278 4 Entered New Map 3 | . . . 3 Time Decay 309 | . 30 278 1 Squads Dispatched . | . . . . Investigation . | . . . . Extermination . | . . . . Reinforcement . | . . . . Assault . | . . . . Garrison . | . . . . Intercept . | . . . . Searches Triggered . | . . . . Construction Impeded . | . . . . Haulers Reinforced . | . . . . Active Scanning Responses . | . . . . Cargo Convoy Interrupts . | . . . . Stealth | -11 -10 -10 -10 --------- Run | Yrd Mat Min Sub Distress Signals . | . . . . Communications Jammed . | . . . . Distress Signals . | . . . . Times Spotted 32 | . 4 9 19 Peak Tracking Total 8 | . 2 3 8 Tactical Retreats 1 | . 1 . . Traps | -11 -10 -10 -10 ------- Run | Yrd Mat Min Sub Traps Triggered 4 | . . 2 2 Indirectly . | . . . . Trap Hack Attempts . | . . . . Triggered . | . . . . Disarmed . | . . . . Reprogrammed . | . . . . Reused . | . . . . Traps Extracted . | . . . . Installed . | . . . . Triggered . | . . . . Machines | -11 -10 -10 -10 ---------- Run | Yrd Mat Min Sub Machines Disabled 1 | . . 1 . Max in Single Turn 1 | . . 1 . Machines Repaired . | . . . . Machines Dismantled . | . . . . Machines Sabotaged . | . . . . Overloaded Fab Kills . | . . . . Hacking | -11 -10 -10 -10 --------- Run | Yrd Mat Min Sub Machines Accessed 2 | . . 1 1 Terminals . | . . . . Fabricators . | . . . . Repair Stations . | . . . . Recycling Units . | . . . . Scanalyzers . | . . . . Garrison Access . | . . . . Total Hacks 4 | . . 1 3 Successful 4 | . . 1 3 Failed . | . . . . Catastrophic . | . . . . Database Lockouts . | . . . . Manual . | . . . . Terminals . | . . . . Fabricators . | . . . . Repair Stations . | . . . . Recycling Units . | . . . . Scanalyzers . | . . . . Garrison Access . | . . . . Terminal Hacks 4 | . . 1 3 Record 3 | . . . 3 Open Door 1 | . . 1 . Fabricator Hacks . | . . . . Repair Station Hacks . | . . . . Recycling Unit Hacks . | . . . . Scanalyzer . | . . . . Garrison Access Hacks . | . . . . Unauthorized Hacks . | . . . . Terminals . | . . . . Fabricators . | . . . . Repair Stations . | . . . . Recycling Units . | . . . . Scanalyzers . | . . . . Garrison Access . | . . . . Data Cores Recovered . | . . . . Used . | . . . . Hacking Detections . | . . . . Full Trace Events . | . . . . Feedback Events . | . . . . Feedback Blocked . | . . . . Robot Schematics Acquired . | . . . . Robots Built . | . . . . Authchips . | . . . . Time . | . . . . Total Robot Build Rating . | . . . . Part Schematics Acquired . | . . . . Parts Built . | . . . . Authchips . | . . . . Time . | . . . . Total Part Build Rating . | . . . . Part Studies Acquired . | . . . . Parts Repaired . | . . . . Time . | . . . . Parts Recycled . | . . . . Recycled Matter . | . . . . Retrieved Matter . | . . . . Retrieved Components . | . . . . Parts Scanalyzed . | . . . . Part Schematics Acquired . | . . . . Parts Damaged . | . . . . Bothacking | -11 -10 -10 -10 ------------ Run | Yrd Mat Min Sub Used RIF Installer . | . . . . Robots Hacked . | . . . . Non-combat . | . . . . Combat . | . . . . Robot Hacks Applied . | . . . . Relay Couplers Released . | . . . . Fabnet Peak Effective % . | . . . . Robots Rewired . | . . . . Allies Hacked . | . . . . Hacks Repelled . | . . . . Allies | -11 -10 -10 -10 -------- Run | Yrd Mat Min Sub Total Allies . | . . . . Largest Group . | . . . . Highest-Rated Group . | . . . . Highest-Rated Ally . | . . . . Total Orders . | . . . . Ally Attacks . | . . . . Total Damage . | . . . . Kills . | . . . . Allies Corrupted . | . . . . Allies Melted . | . . . . Intel | -11 -10 -10 -10 ------- Run | Yrd Mat Min Sub Active Infowar (turns) . | . . . . Robot Analysis Total . | . . . . Derelict Logs Recovered 3 | . . 1 2 Drone Launches . | . . . . Drone Recoveries . | . . . . Exploration | -11 -10 -10 -10 ------------- Run | Yrd Mat Min Sub Turns Passed 2427 | 82 180 613 1552 Spaces Moved 1636 | 46 101 349 1140 Core 7 | 3 . . 4 Treads 663 | 43 101 345 174 Legs 966 | . . 4 962 Wheels . | . . . . Hover . | . . . . Flight . | . . . . Fastest Speed 50 | 50 160 120 120 Average Speed 136 | 152 160 159 126 Slowest Speed 250 | 160 160 160 250 Overloaded Moves . | . . . . Propulsion Burnouts . | . . . . Robots Hopped . | . . . . Potential Cave-ins . | . . . . Cave-ins Triggered . | . . . . Exploration Rate (%) 39 | 4 17 75 60 Regions Visited 3 Branch Regions 2 Pre-discovered Areas 1 | . . 1 . Known Exits Taken . | . . . . Unknown Exits Taken 3 | 1 1 1 . Scrap Searched 6 | . . 1 5 Spaces Dug . | . . . . Terrain Destroyed 60 | . . 60 . Melee . | . . . . Projectile . | . . . . AOE 60 | . . 60 . Terrain Rammed . | . . . . Walls Destroyed . | . . . . Machines Disabled . | . . . . Actions | -11 -10 -10 -10 --------- Run | Yrd Mat Min Sub Total 1750 | 55 115 384 1196 Wait 28 | . 9 12 7 Move 1633 | 45 100 348 1140 Hop . | . . . . Pick Up 14 | 4 1 4 5 Fast Attach 8 | 6 . 1 1 Attach 9 | . 1 2 6 Detach . | . . . . Swap 6 | . 2 3 1 Drop 1 | . . . 1 Fire 49 | . 2 13 34 Melee . | . . . . Ram . | . . . . Kick 1 | . . . 1 Crush 1 | . . 1 . Escape Stasis . | . . . . Rewire . | . . . . Trap . | . . . . Miscellaneous . | . . . . Route ------- -11/Scrapyard -10/Materials -10/Mines (discovered 3 exits: [*Mat x2] / *Sub) -10/Subcaves History --------- Turn | Location | Event 4 | -11/Scrapyard | Discovered new exit (range 15) 83 | -11/Scrapyard | Entered Materials 239 | -10/Materials | Discovered new exit (range 9) 263 | -10/Materials | Entered Mines 318 | -10/Mines | Build established: Mutant 340 | -10/Mines | Received a Rocket Launcher from a helpful Derelict 456 | -10/Mines | Discovered new exit (range 13) 571 | -10/Mines | Met a Derelict who couldn't figure out how to use a Trap Extractor 687 | -10/Mines | Discovered new exit (range 9) 858 | -10/Mines | Discovered new exit (range 13) 876 | -10/Mines | Entered Subcaves 894 | -10/Subcaves | Learned 2 Materials zone layouts 1109 | -10/Subcaves | Visited Clippyterm 1114 | -10/Subcaves | Learned 40 Factory zone layouts 1158 | -10/Subcaves | Ambushed by swarm of Subdwellers 1165 | -10/Subcaves | Ambushed by Subdwellers from Twisted Machinery 1189 | -10/Subcaves | Core integrity fell below 50% 1221 | -10/Subcaves | Lost 4 parts (1p2n1w) 1278 | -10/Subcaves | Learned Materials terminal intel 1918 | -10/Subcaves | Shifting Twisted Machinery released Mak. Thermal Plating 1934 | -10/Subcaves | Shifting Twisted Machinery released Battle Rifle 2327 | -10/Subcaves | Disturbed a concealed Subdweller 2374 | -10/Subcaves | Ambushed by Subdwellers from Twisted Machinery 2413 | -10/Subcaves | Core integrity fell below 20% 2428 | -10/Subcaves | Destroyed by F8-3R7(R) with Subdweller Beam Cannon Last Messages --------------- 02327_ Kicked 31-FCA(R). 02329_ Acquired 2 matter. 02330_ 31-FCA(R) affixes Scrap Shield Fragment to Scrap Shield. 02331_ 31-FCA(R) destroyed. 02332_ Acquired 1 matter. 02334_ Searching scrap... 02334_ Found Sub. Machine Gun. 02334_ Found Flamer. 02334_ Found 57 Matter. 02335_ Acquired 1 matter. 02336_ Acquired Flamer. 02374_ F8-3R7(R) emerges from the Twisted Machinery. 02407_ Lgt. Angular Momentum Engine destroyed. 02409_ Critical hit (Meltdown: +290). 02410_ Aluminum Leg destroyed. 02414_ Lgt. Assault Rifle destroyed. 02416_ BX-ZAT(R) destroyed. 02416_ Myomer Leg destroyed. 02420_ F8-3R7(R) suffers critical hit (Destroy). 02422_ Lgt. Assault Rifle destroyed. Map ----- +----------------------------------------------------+ | ?????????????????????????????????????????????????? | | ?????????????????????????????????????????????????? | | ?????????????????????????????????????????????????? | | ?????????????????????????????????????????????????? | | ?????????????????????????????????????????????????? | | ?????????????????????????????????????????????????? | | ?????????????????????????????????????????????????? | | ?????????????????????????????????????????????????? | | ?????????????????????????????????????????????????? | | ?????????????????????????????????????????????????? | | ?????????????????????????????????????????????????? | | ?????????????????????????????????????????????????? | | ?????????????????????????????????????????????????? | | ?????????????????????????????????????????????????? | | ?????????????????????????????????????????????????? | | ??????????????????????????##?###?????????????????? | | ?????????????????????????? ## ?#????????????????? | | ?????????????????????????# #????????????????? | | ????????????????????????## ?????????????????? | | ????????????????????????# ??????????????????? | | ???????????????????????## ???????????????????? | | ???????????????????????# #???????????????????? | | ??????????????????????## """ #???????????????????? | | ??????????????????????#;""" #????????????????????? | | ???????????????????????# #?????????????????????? | | ???????????????????????# @ #?????????????????????? | | ???????????????????????# ##??#" ???????????????? | | ??????????????????????#; #?#""????????????????? | | ??????????????????????# R##""" ???????????????? | | ??????????????????????# !="#??? #????????????? | | ??????????????????????## !%[ #??"""#????????????? | | ???????????????????????# """" #?# ##???????????? | | ???????????????????????#"" # " "#???????????? | | ???????????????????????## "" " "#???????????? | | ???????????????????????## """" """""#???????????? | | ???????????????????????# #"#"# #???????????? | | ???????????????????????# #### ##???????????? | | ???????????????????????# ### ### #????????????? | | ???????????????????????## %##??#????????????? | | ????????????????????????# ##??????????????? | | ???????????????????????## #??????????????? | | ???????????????????????# #??????????????? | | ???????????????????????### #??????????????? | | ?????????????????????????# ####???????????? | | ?????????????????????????#" #???????????? | | ??????????????????????????# #???????????? | | ??????????????????????????## #???????????? | | ???????????????????????????### ###???????????? | | ?????????????????????????????## ##?????????????? | | ??????????????????????????????# #??????????????? | +----------------------------------------------------+ Best States ------------- Heat Dissipation 25 Energy Generation 18 Energy Capacity 250 Matter Stores 300 Matter Capacity 400 Sight Range 16 Terrain Scan Density 10 Evasion (%) 55 Recoil Reduction 2 Trap Extractor Capacity 6 Item Schematics ----------------- None Robot Schematics ------------------ None Fabricated ------------ Nothing Repaired ---------- Nothing Studied --------- None Alien Tech Used ----------------- None Achievements -------------- None Challenges ------------ None Game ------ Seed ActiveMissileDatajack Manual? 0 Play Time 00:26:31 Cumulative 6.2 hours Start 2026.02.22 @ 16:55:12 End 2026.02.22 @ 17:20:50 Sessions 1 Manual Loads 0 Difficulty Rogue Special Mode None Game No. 7 Rogue 7 Adventurer 0 Explorer 0 Win Type - Total 0 Types 0/0/0/0/0/0/0/0/0/0 Lore% 14 Gallery% 8 Achievement% 9 Wizard Run 0 Options --------- Layout 0 ASCII 0 Keyboard 1 Movement Numpad Keybinds 0 Fullscreen 2 Font 18/SmallcapsGlow Map View 76x50 Zoom Use 0% Tactical HUD 1 Map Filters NONE Filters NONE Steam 1 RUN: f9fd10e1-cf41-43f5-b36f-970c1b574245